[Event "Betsys MČR v online bleskovém šachu 2021"]
[Site "Chess.com"]
[Date "2021.04.17"]
[Round "5"]
[White "Maximon2012"]
[Black "veronikam"]
[Result "0-1"]
[WhiteElo "1086"]
[BlackElo "1520"]
[TimeControl "180+1"]
[EndTime "9:47:39 PDT"]
[Termination "Uživatel veronikam zvítězil matem"]

1. g3 {[%clk 0:02:56.8]} 1... e5 {[%clk 0:02:53.4]} 2. Bg2 {[%clk 0:02:56.6]}
2... Nf6 {[%clk 0:02:51.4]} 3. d3 {[%clk 0:02:54.6]} 3... d5 {[%clk 0:02:47.3]}
4. Bd2 {[%clk 0:02:48.7]} 4... Bc5 {[%clk 0:02:46.9]} 5. e3 {[%clk 0:02:44.5]}
5... Nc6 {[%clk 0:02:44.7]} 6. c4 {[%clk 0:02:43.2]} 6... dxc4 {[%clk
0:02:37.1]} 7. dxc4 {[%clk 0:02:40.9]} 7... Bd7 {[%clk 0:02:35.9]} 8. Nc3 {[%clk
0:02:39.7]} 8... a6 {[%clk 0:02:33.1]} 9. Nf3 {[%clk 0:02:33.2]} 9... O-O {[%clk
0:02:31.2]} 10. Qc2 {[%clk 0:02:25.2]} 10... g6 {[%clk 0:02:24.9]} 11. O-O
{[%clk 0:02:18]} 11... Bf5 {[%clk 0:02:24.3]} 12. Qd1 {[%clk 0:02:10.3]} 12...
Qe7 {[%clk 0:02:19.9]} 13. Bc1 {[%clk 0:01:57.1]} 13... Rad8 {[%clk 0:02:19]}
14. Qe2 {[%clk 0:01:56.3]} 14... Bd3 {[%clk 0:02:16.6]} 15. Qe1 {[%clk
0:01:50.3]} 15... Bxf1 {[%clk 0:02:16.1]} 16. Kxf1 {[%clk 0:01:46.4]} 16... Bb4
{[%clk 0:02:15.5]} 17. Bd2 {[%clk 0:01:42.9]} 17... Qe6 {[%clk 0:02:06.9]} 18.
Ng5 {[%clk 0:01:39.1]} 18... Qxc4+ {[%clk 0:02:05.2]} 19. Qe2 {[%clk 0:01:34.8]}
19... Qxe2+ {[%clk 0:02:01.9]} 20. Kxe2 {[%clk 0:01:32.7]} 20... h6 {[%clk
0:02:00]} 21. Nge4 {[%clk 0:01:25.4]} 21... Nxe4 {[%clk 0:01:57.1]} 22. Bxe4
{[%clk 0:01:20.4]} 22... f5 {[%clk 0:01:54.7]} 23. Bd3 {[%clk 0:01:17.2]} 23...
e4 {[%clk 0:01:49.6]} 24. Bc4+ {[%clk 0:01:14.6]} 24... Kg7 {[%clk 0:01:48.9]}
25. Nb1 {[%clk 0:01:09.8]} 25... Bxd2 {[%clk 0:01:42.6]} 26. Nxd2 {[%clk
0:01:07.5]} 26... Nb4 {[%clk 0:01:42.1]} 27. a3 {[%clk 0:01:02.7]} 27... Nd5
{[%clk 0:01:33.8]} 28. Bxd5 {[%clk 0:00:58.9]} 28... Rxd5 {[%clk 0:01:32.9]} 29.
Rd1 {[%clk 0:00:57.4]} 29... Rfd8 {[%clk 0:01:32.1]} 30. b4 {[%clk 0:00:50.1]}
30... Rd3 {[%clk 0:01:29.4]} 31. h3 {[%clk 0:00:48.2]} 31... Rxa3 {[%clk
0:01:24.3]} 32. Nc4 {[%clk 0:00:41.9]} 32... Ra2+ {[%clk 0:01:20.6]} 33. Rd2
{[%clk 0:00:38.8]} 33... Rdxd2+ {[%clk 0:01:16.3]} 34. Nxd2 {[%clk 0:00:35.6]}
34... Rb2 {[%clk 0:01:15.4]} 35. g4 {[%clk 0:00:29.3]} 35... fxg4 {[%clk
0:01:13.6]} 36. hxg4 {[%clk 0:00:28.5]} 36... Kf6 {[%clk 0:01:12.3]} 37. Ke1
{[%clk 0:00:21.5]} 37... Rxb4 {[%clk 0:01:10.8]} 38. Kf1 {[%clk 0:00:20]} 38...
Kg5 {[%clk 0:01:08.9]} 39. f3 {[%clk 0:00:15.4]} 39... exf3 {[%clk 0:01:06.8]}
40. Nxf3+ {[%clk 0:00:13.1]} 40... Kxg4 {[%clk 0:01:06.2]} 41. Ng1 {[%clk
0:00:13.5]} 41... Rb1+ {[%clk 0:01:03.1]} 42. Kf2 {[%clk 0:00:12.5]} 42... Rxg1
{[%clk 0:01:01.5]} 43. Kxg1 {[%clk 0:00:11.1]} 43... a5 {[%clk 0:01:00.8]} 44.
Kf1 {[%clk 0:00:10.8]} 44... Kf3 {[%clk 0:00:59.1]} 45. Ke1 {[%clk 0:00:10.4]}
45... a4 {[%clk 0:00:58.6]} 46. Kd1 {[%clk 0:00:10.1]} 46... h5 {[%clk 0:00:58]}
47. e4 {[%clk 0:00:06.1]} 47... Kxe4 {[%clk 0:00:57.4]} 48. Kd2 {[%clk
0:00:02.2]} 48... h4 {[%clk 0:00:57]} 49. Kd1 {[%clk 0:00:01.1]} 49... h3 {[%clk
0:00:56.9]} 50. Ke1 {[%clk 0:00:01.5]} 50... h2 {[%clk 0:00:56.8]} 51. Kf1
{[%clk 0:00:01.8]} 51... h1=Q+ {[%clk 0:00:55.9]} 52. Kf2 {[%clk 0:00:02.4]}
52... Qh2+ {[%clk 0:00:54.4]} 53. Ke1 {[%clk 0:00:02.6]} 53... Ke3 {[%clk
0:00:54.5]} 54. Kd1 {[%clk 0:00:01.1]} 54... Qd2# {[%clk 0:00:54.4]} 0-1

[Event "Betsys MČR v online bleskovém šachu 2021"]
[Site "Chess.com"]
[Date "2021.04.17"]
[Round "5"]
[White "Evca64"]
[Black "Pantata007"]
[Result "0-1"]
[WhiteElo "2070"]
[BlackElo "2273"]
[TimeControl "180+1"]
[EndTime "9:47:40 PDT"]
[Termination "Uživatel Pantata007 zvítězil na čas"]

1. e4 {[%clk 0:03:00.9]} 1... e5 {[%clk 0:02:59.6]} 2. Nf3 {[%clk 0:03:00.1]}
2... Nc6 {[%clk 0:02:59.2]} 3. Bb5 {[%clk 0:02:59.2]} 3... a6 {[%clk 0:02:58.8]}
4. Ba4 {[%clk 0:02:59.1]} 4... Nf6 {[%clk 0:02:58.5]} 5. O-O {[%clk 0:02:59]}
5... Be7 {[%clk 0:02:58.5]} 6. Bxc6 {[%clk 0:02:58.3]} 6... dxc6 {[%clk
0:02:57.6]} 7. Qe1 {[%clk 0:02:58.4]} 7... Nd7 {[%clk 0:02:54.9]} 8. b3 {[%clk
0:02:57.8]} 8... O-O {[%clk 0:02:53.5]} 9. Bb2 {[%clk 0:02:56.9]} 9... f6 {[%clk
0:02:49.2]} 10. d4 {[%clk 0:02:56.3]} 10... exd4 {[%clk 0:02:45]} 11. Nxd4
{[%clk 0:02:55.8]} 11... Nc5 {[%clk 0:02:42.3]} 12. Nd2 {[%clk 0:02:33.1]} 12...
Re8 {[%clk 0:02:34.9]} 13. Rd1 {[%clk 0:02:10.1]} 13... Bd6 {[%clk 0:02:29.1]}
14. f3 {[%clk 0:01:41.7]} 14... f5 {[%clk 0:02:10.7]} 15. Kh1 {[%clk 0:01:11.9]}
15... fxe4 {[%clk 0:01:56.3]} 16. Nxe4 {[%clk 0:01:08.2]} 16... Nxe4 {[%clk
0:01:53.8]} 17. fxe4 {[%clk 0:01:06.9]} 17... Bg4 {[%clk 0:01:10.9]} 18. Rd3
{[%clk 0:01:03.7]} 18... Qe7 {[%clk 0:01:07.1]} 19. Re3 {[%clk 0:00:19.1]} 19...
Be5 {[%clk 0:01:05.3]} 20. c3 {[%clk 0:00:15.6]} 20... Rad8 {[%clk 0:01:01.7]}
21. Nf5 {[%clk 0:00:14.2]} 21... Qg5 {[%clk 0:00:30.5]} 22. Qh4 {[%clk
0:00:12.3]} 22... Qxh4 {[%clk 0:00:20]} 23. Nxh4 {[%clk 0:00:12.2]} 23... Rd2
{[%clk 0:00:20]} 24. Bc1 {[%clk 0:00:11.2]} 24... Rxa2 {[%clk 0:00:19.4]} 25.
Nf5 {[%clk 0:00:10.7]} 25... Bf6 {[%clk 0:00:11]} 26. Ree1 {[%clk 0:00:07.9]}
26... Rc2 {[%clk 0:00:09.6]} 27. c4 {[%clk 0:00:07.1]} 27... Bxf5 {[%clk
0:00:09]} 28. exf5 {[%clk 0:00:06.6]} 28... Rce2 {[%clk 0:00:05.6]} 29. Rxe2
{[%clk 0:00:06.2]} 29... Rxe2 {[%clk 0:00:06.5]} 30. g3 {[%clk 0:00:04.5]} 30...
Kf7 {[%clk 0:00:05.8]} 31. Rd1 {[%clk 0:00:03]} 31... Ke7 {[%clk 0:00:05.2]} 32.
Kg1 {[%clk 0:00:02.9]} 32... Rc2 {[%clk 0:00:04.7]} 33. Bf4 {[%clk 0:00:02.3]}
33... Rc3 {[%clk 0:00:03.2]} 0-1

[Event "Betsys MČR v online bleskovém šachu 2021"]
[Site "Chess.com"]
[Date "2021.04.17"]
[Round "5"]
[White "BetsysBetting"]
[Black "AdaTra"]
[Result "1-0"]
[WhiteElo "1987"]
[BlackElo "1642"]
[TimeControl "180+1"]
[EndTime "9:47:40 PDT"]
[Termination "Uživatel BetsysBetting zvítězil po vzdání soupeře"]

1. d4 {[%clk 0:03:00.9]} 1... d5 {[%clk 0:02:59.8]} 2. c4 {[%clk 0:02:46.2]}
2... c6 {[%clk 0:02:59.1]} 3. Nf3 {[%clk 0:02:43.4]} 3... Nf6 {[%clk 0:02:58.8]}
4. Nc3 {[%clk 0:02:41.4]} 4... e6 {[%clk 0:02:58.6]} 5. Bg5 {[%clk 0:02:35.1]}
5... Nbd7 {[%clk 0:02:57.9]} 6. cxd5 {[%clk 0:02:34.2]} 6... exd5 {[%clk
0:02:57.1]} 7. e3 {[%clk 0:02:34.2]} 7... Bd6 {[%clk 0:02:56.1]} 8. Qc2 {[%clk
0:02:29.8]} 8... Nf8 {[%clk 0:02:48.2]} 9. Bd3 {[%clk 0:02:22.9]} 9... Ng6
{[%clk 0:02:43.5]} 10. e4 {[%clk 0:01:49.2]} 10... dxe4 {[%clk 0:02:30]} 11.
Nxe4 {[%clk 0:01:47.2]} 11... Be7 {[%clk 0:02:29.6]} 12. Nc3 {[%clk 0:01:10.3]}
12... O-O {[%clk 0:02:25.7]} 13. O-O {[%clk 0:01:05.8]} 13... Bg4 {[%clk
0:02:13.9]} 14. Ne5 {[%clk 0:00:32.5]} 14... Nxe5 {[%clk 0:02:12.2]} 15. dxe5
{[%clk 0:00:32.3]} 15... Nd7 {[%clk 0:02:07.8]} 16. Bxh7+ {[%clk 0:00:27.5]}
16... Kh8 {[%clk 0:02:07]} 17. Bxe7 {[%clk 0:00:22.3]} 17... Qxe7 {[%clk
0:02:07.9]} 18. Bf5 {[%clk 0:00:20.6]} 18... Bxf5 {[%clk 0:01:35.4]} 19. Qxf5
{[%clk 0:00:20.1]} 19... Rad8 {[%clk 0:01:34.4]} 20. f4 {[%clk 0:00:20.1]} 20...
g6 {[%clk 0:01:29.5]} 21. Qh3+ {[%clk 0:00:18]} 21... Kg7 {[%clk 0:01:28.9]} 22.
Ne4 {[%clk 0:00:16.8]} 22... Rh8 {[%clk 0:01:25.3]} 23. Qf3 {[%clk 0:00:15.8]}
23... Nb6 {[%clk 0:01:20]} 24. h3 {[%clk 0:00:15.8]} 24... Nd5 {[%clk
0:01:19.4]} 25. Rae1 {[%clk 0:00:10.2]} 25... Rh6 {[%clk 0:01:17.6]} 26. f5
{[%clk 0:00:09.8]} 26... gxf5 {[%clk 0:01:12]} 27. Qxf5 {[%clk 0:00:09.5]} 27...
Rdh8 {[%clk 0:01:08.2]} 28. Nd6 {[%clk 0:00:08.5]} 28... Rf8 {[%clk 0:00:49.1]}
29. Re4 {[%clk 0:00:07.8]} 29... Kg8 {[%clk 0:00:41.3]} 30. Rg4+ {[%clk
0:00:07.6]} 30... Kh8 {[%clk 0:00:38.9]} 31. Nxf7+ {[%clk 0:00:07.1]} 31... Rxf7
{[%clk 0:00:35.8]} 32. Qxf7 {[%clk 0:00:07.2]} 32... Qxf7 {[%clk 0:00:30.3]} 33.
Rxf7 {[%clk 0:00:06.9]} 33... Ne3 {[%clk 0:00:25.2]} 34. Re4 {[%clk 0:00:05.8]}
34... Nc2 {[%clk 0:00:19.8]} 35. e6 {[%clk 0:00:05.7]} 35... Kg8 {[%clk
0:00:17.4]} 36. Rxb7 {[%clk 0:00:05.4]} 36... a5 {[%clk 0:00:15.6]} 37. e7
{[%clk 0:00:05.7]} 1-0

[Event "Betsys MČR v online bleskovém šachu 2021"]
[Site "Chess.com"]
[Date "2021.04.17"]
[Round "5"]
[White "starypomalymuz"]
[Black "petiva3"]
[Result "0-1"]
[WhiteElo "1757"]
[BlackElo "1374"]
[TimeControl "180+1"]
[EndTime "9:47:40 PDT"]
[Termination "Uživatel petiva3 zvítězil na čas"]

1. e4 {[%clk 0:03:00.9]} 1... e5 {[%clk 0:02:59.7]} 2. d4 {[%clk 0:02:58.6]}
2... exd4 {[%clk 0:02:57.8]} 3. c3 {[%clk 0:02:58.7]} 3... Nc6 {[%clk
0:02:50.3]} 4. Bc4 {[%clk 0:02:58.9]} 4... d6 {[%clk 0:02:41.8]} 5. cxd4 {[%clk
0:02:58.4]} 5... Nf6 {[%clk 0:02:32.2]} 6. Nc3 {[%clk 0:02:57.2]} 6... g6 {[%clk
0:02:28.6]} 7. Nf3 {[%clk 0:02:52.8]} 7... Bg7 {[%clk 0:02:27.3]} 8. O-O {[%clk
0:02:37.2]} 8... O-O {[%clk 0:02:27.2]} 9. Bg5 {[%clk 0:02:31.9]} 9... h6 {[%clk
0:02:23]} 10. Be3 {[%clk 0:02:30.3]} 10... Bg4 {[%clk 0:02:21.8]} 11. h3 {[%clk
0:02:30.3]} 11... Bxf3 {[%clk 0:02:16]} 12. Qxf3 {[%clk 0:02:27]} 12... Qe7
{[%clk 0:02:05.3]} 13. Rfe1 {[%clk 0:02:21.3]} 13... Nd7 {[%clk 0:02:00.1]} 14.
Nd5 {[%clk 0:02:07.6]} 14... Qd8 {[%clk 0:01:45]} 15. Rad1 {[%clk 0:02:03]}
15... Ne7 {[%clk 0:01:37.8]} 16. Nc3 {[%clk 0:01:44.9]} 16... Nb6 {[%clk
0:01:34.4]} 17. Bb3 {[%clk 0:01:38]} 17... Nc6 {[%clk 0:01:30.5]} 18. e5 {[%clk
0:01:29.8]} 18... dxe5 {[%clk 0:01:15.4]} 19. dxe5 {[%clk 0:01:27.5]} 19... Qe7
{[%clk 0:01:14.9]} 20. Bxb6 {[%clk 0:01:03.2]} 20... axb6 {[%clk 0:01:10.8]} 21.
Nd5 {[%clk 0:00:56.7]} 21... Qg5 {[%clk 0:00:55.8]} 22. Nxc7 {[%clk 0:00:46.3]}
22... Nxe5 {[%clk 0:00:47.7]} 23. Qg3 {[%clk 0:00:34.4]} 23... Qxg3 {[%clk
0:00:35.2]} 24. fxg3 {[%clk 0:00:34.5]} 24... Rad8 {[%clk 0:00:29.3]} 25. Nd5
{[%clk 0:00:29.4]} 25... Nc6 {[%clk 0:00:22.8]} 26. Nxb6 {[%clk 0:00:26.4]}
26... Rxd1 {[%clk 0:00:20.5]} 27. Rxd1 {[%clk 0:00:26.7]} 27... Bxb2 {[%clk
0:00:20.2]} 28. Rd7 {[%clk 0:00:20.3]} 28... Be5 {[%clk 0:00:19.5]} 29. Rxb7
{[%clk 0:00:17.6]} 29... Bxg3 {[%clk 0:00:19.5]} 30. a4 {[%clk 0:00:14.5]} 30...
Na5 {[%clk 0:00:19.1]} 31. Bd5 {[%clk 0:00:08]} 31... Nxb7 {[%clk 0:00:18.4]}
32. Bxb7 {[%clk 0:00:08.1]} 32... Rb8 {[%clk 0:00:18.1]} 33. a5 {[%clk
0:00:03.4]} 33... Rxb7 {[%clk 0:00:18.3]} 34. Kf1 {[%clk 0:00:01.2]} 34... Ra7
{[%clk 0:00:17.6]} 35. Ke2 {[%clk 0:00:01.1]} 35... Rxa5 {[%clk 0:00:17.7]} 36.
Nd7 {[%clk 0:00:01.5]} 36... Ra2+ {[%clk 0:00:11.3]} 37. Kf3 {[%clk 0:00:01.1]}
37... Bd6 {[%clk 0:00:10.1]} 0-1

[Event "Betsys MČR v online bleskovém šachu 2021"]
[Site "Chess.com"]
[Date "2021.04.17"]
[Round "5"]
[White "AlenaSouralova"]
[Black "Figo5144"]
[Result "1-0"]
[WhiteElo "911"]
[BlackElo "566"]
[TimeControl "180+1"]
[EndTime "9:47:40 PDT"]
[Termination "Uživatel AlenaSouralova zvítězil na čas"]

1. e4 {[%clk 0:02:50.3]} 1... e5 {[%clk 0:02:59.7]} 2. Nf3 {[%clk 0:02:50.6]}
2... Nc6 {[%clk 0:02:56.1]} 3. Nc3 {[%clk 0:02:45.2]} 3... a6 {[%clk 0:02:55.2]}
4. Be2 {[%clk 0:02:40]} 4... h6 {[%clk 0:02:54.4]} 5. d3 {[%clk 0:02:38.1]} 5...
Nf6 {[%clk 0:02:54.3]} 6. Be3 {[%clk 0:02:33.1]} 6... Bd6 {[%clk 0:02:52.7]} 7.
Qd2 {[%clk 0:02:30.6]} 7... O-O {[%clk 0:02:52.6]} 8. O-O-O {[%clk 0:02:29.9]}
8... Bb4 {[%clk 0:02:51.7]} 9. Rdg1 {[%clk 0:02:26.4]} 9... d6 {[%clk
0:02:50.1]} 10. h4 {[%clk 0:02:24]} 10... g6 {[%clk 0:02:48]} 11. g4 {[%clk
0:02:23.7]} 11... Bxg4 {[%clk 0:02:35.5]} 12. Ne1 {[%clk 0:02:07.7]} 12... h5
{[%clk 0:02:32]} 13. Bxg4 {[%clk 0:02:00.1]} 13... Nxg4 {[%clk 0:02:28.3]} 14.
Bg5 {[%clk 0:01:53.6]} 14... Qd7 {[%clk 0:02:22.6]} 15. Bh6 {[%clk 0:01:45.1]}
15... Rfe8 {[%clk 0:02:08.7]} 16. f3 {[%clk 0:01:31.2]} 16... Bxc3 {[%clk
0:01:48.4]} 17. bxc3 {[%clk 0:01:27.4]} 17... Nf6 {[%clk 0:01:36.5]} 18. Rg2
{[%clk 0:01:15.4]} 18... Nb8 {[%clk 0:01:01.8]} 19. Rhg1 {[%clk 0:01:12.4]}
19... Nh7 {[%clk 0:00:50.7]} 20. Rxg6+ {[%clk 0:01:05]} 20... fxg6 {[%clk
0:00:50.3]} 21. Rxg6+ {[%clk 0:01:05.5]} 21... Kh8 {[%clk 0:00:41]} 22. Qg2
{[%clk 0:01:01.2]} 22... Nc6 {[%clk 0:00:21.5]} 23. Rg7 {[%clk 0:00:59.9]} 23...
Rg8 {[%clk 0:00:18]} 24. Rxh7+ {[%clk 0:00:57.4]} 24... Kxh7 {[%clk 0:00:16.4]}
25. Bg5 {[%clk 0:00:44.2]} 25... Rxg5 {[%clk 0:00:10.4]} 26. Qxg5 {[%clk
0:00:43.7]} 26... Qg7 {[%clk 0:00:10.5]} 27. Qxh5+ {[%clk 0:00:43.1]} 27... Qh6+
{[%clk 0:00:09.6]} 28. Qxh6+ {[%clk 0:00:40.8]} 28... Kxh6 {[%clk 0:00:09.1]}
29. Ng2 {[%clk 0:00:38.3]} 29... Rg8 {[%clk 0:00:08.7]} 30. Ne3 {[%clk
0:00:35.9]} 30... Rg1+ {[%clk 0:00:07.4]} 31. Kb2 {[%clk 0:00:34.8]} 31... Na5
{[%clk 0:00:06.4]} 32. Nf5+ {[%clk 0:00:32.6]} 32... Kg6 {[%clk 0:00:05]} 33.
Ne7+ {[%clk 0:00:32.2]} 33... Kf6 {[%clk 0:00:04.6]} 34. Ng8+ {[%clk 0:00:30.7]}
34... Kf7 {[%clk 0:00:04.3]} 35. Nh6+ {[%clk 0:00:30.3]} 35... Ke6 {[%clk
0:00:03.5]} 36. h5 {[%clk 0:00:25.9]} 36... d5 {[%clk 0:00:03]} 37. exd5+ {[%clk
0:00:24.3]} 37... Kxd5 {[%clk 0:00:03.2]} 38. Ng8 {[%clk 0:00:22.3]} 38... e4
{[%clk 0:00:02.2]} 39. fxe4+ {[%clk 0:00:20.8]} 39... Ke5 {[%clk 0:00:01.9]} 40.
h6 {[%clk 0:00:20.7]} 40... Rh1 {[%clk 0:00:01.5]} 41. Ne7 {[%clk 0:00:18]} 1-0

[Event "Betsys MČR v online bleskovém šachu 2021"]
[Site "Chess.com"]
[Date "2021.04.17"]
[Round "5"]
[White "Danyjel"]
[Black "jonasstach"]
[Result "0-1"]
[WhiteElo "1710"]
[BlackElo "2008"]
[TimeControl "180+1"]
[EndTime "9:47:42 PDT"]
[Termination "Uživatel jonasstach zvítězil po vzdání soupeře"]

1. e4 {[%clk 0:03:00.6]} 1... e6 {[%clk 0:03:00.3]} 2. d4 {[%clk 0:02:59.9]}
2... d5 {[%clk 0:03:00.9]} 3. Nd2 {[%clk 0:02:58.1]} 3... c5 {[%clk 0:03:00.4]}
4. exd5 {[%clk 0:02:57.8]} 4... exd5 {[%clk 0:03:01.3]} 5. dxc5 {[%clk
0:02:57.8]} 5... Bxc5 {[%clk 0:03:00.6]} 6. Bd3 {[%clk 0:02:58.4]} 6... Qb6
{[%clk 0:02:59.1]} 7. Qe2+ {[%clk 0:02:54.3]} 7... Be6 {[%clk 0:02:58.5]} 8.
Ngf3 {[%clk 0:02:53.8]} 8... h6 {[%clk 0:02:53.1]} 9. O-O {[%clk 0:02:52.7]}
9... Nf6 {[%clk 0:02:51.8]} 10. Nb3 {[%clk 0:02:48.8]} 10... Bd6 {[%clk
0:02:49]} 11. Be3 {[%clk 0:02:43.8]} 11... Qc7 {[%clk 0:02:47]} 12. c3 {[%clk
0:02:38.3]} 12... O-O {[%clk 0:02:44.2]} 13. h3 {[%clk 0:02:35.4]} 13... Nc6
{[%clk 0:02:41]} 14. Nbd4 {[%clk 0:02:32.4]} 14... Rae8 {[%clk 0:02:34.8]} 15.
Nb5 {[%clk 0:02:28.3]} 15... Qb8 {[%clk 0:02:33.2]} 16. Nxd6 {[%clk 0:02:27.3]}
16... Qxd6 {[%clk 0:02:34.1]} 17. Qc2 {[%clk 0:02:05.6]} 17... b6 {[%clk
0:02:28.2]} 18. Nd4 {[%clk 0:01:57.3]} 18... Nxd4 {[%clk 0:02:23.7]} 19. Bxd4
{[%clk 0:01:56.7]} 19... Qd8 {[%clk 0:02:08.3]} 20. Rfe1 {[%clk 0:01:52.7]}
20... Bd7 {[%clk 0:01:55.6]} 21. Qd2 {[%clk 0:01:39.5]} 21... Rxe1+ {[%clk
0:01:48.4]} 22. Rxe1 {[%clk 0:01:38.2]} 22... Re8 {[%clk 0:01:47.3]} 23. Rxe8+
{[%clk 0:01:21.4]} 23... Nxe8 {[%clk 0:01:46.5]} 24. Bc2 {[%clk 0:01:06.6]}
24... Bb5 {[%clk 0:01:27.4]} 25. Qf4 {[%clk 0:00:57.6]} 25... Nc7 {[%clk
0:00:56.5]} 26. Qf5 {[%clk 0:00:41.9]} 26... Ne6 {[%clk 0:00:44.9]} 27. Qh7+
{[%clk 0:00:38.6]} 27... Kf8 {[%clk 0:00:45.5]} 28. Bxg7+ {[%clk 0:00:20]} 28...
Nxg7 {[%clk 0:00:41.8]} 29. Qh8+ {[%clk 0:00:19.9]} 29... Ke7 {[%clk 0:00:41.5]}
30. Qxg7 {[%clk 0:00:20]} 30... Qd6 {[%clk 0:00:40.2]} 31. Qg4 {[%clk
0:00:15.7]} 31... Qe5 {[%clk 0:00:36]} 32. Qh4+ {[%clk 0:00:11.4]} 32... Kd7
{[%clk 0:00:26.9]} 33. Qxh6 {[%clk 0:00:11.2]} 33... Qe1+ {[%clk 0:00:26.8]} 34.
Kh2 {[%clk 0:00:10.6]} 34... Qe5+ {[%clk 0:00:27.4]} 35. g3 {[%clk 0:00:08.6]}
35... Bf1 {[%clk 0:00:17.9]} 36. Qf4 {[%clk 0:00:08]} 36... Qe2 {[%clk
0:00:15.8]} 37. Qxf7+ {[%clk 0:00:06]} 37... Kc6 {[%clk 0:00:16.1]} 38. Qf6+
{[%clk 0:00:05.5]} 38... Kb7 {[%clk 0:00:15.4]} 39. Bf5 {[%clk 0:00:04.4]} 39...
Qxf2+ {[%clk 0:00:13.9]} 0-1

[Event "Betsys MČR v online bleskovém šachu 2021"]
[Site "Chess.com"]
[Date "2021.04.17"]
[Round "5"]
[White "RousekJan"]
[Black "Nevimjakhrat"]
[Result "1-0"]
[WhiteElo "1793"]
[BlackElo "1475"]
[TimeControl "180+1"]
[EndTime "9:47:42 PDT"]
[Termination "Uživatel RousekJan zvítězil matem"]

1. e4 {[%clk 0:03:00.9]} 1... c6 {[%clk 0:02:58]} 2. d4 {[%clk 0:03:00.6]} 2...
d5 {[%clk 0:02:55.6]} 3. Nc3 {[%clk 0:03:00.8]} 3... dxe4 {[%clk 0:02:55]} 4.
Bc4 {[%clk 0:03:00.8]} 4... Bf5 {[%clk 0:02:55.8]} 5. f3 {[%clk 0:02:57.8]} 5...
exf3 {[%clk 0:02:49.3]} 6. Nxf3 {[%clk 0:02:58.7]} 6... e6 {[%clk 0:02:49.3]} 7.
O-O {[%clk 0:02:54.6]} 7... Nd7 {[%clk 0:02:45.9]} 8. Ng5 {[%clk 0:02:43.6]}
8... Be7 {[%clk 0:02:24.4]} 9. Rxf5 {[%clk 0:02:16.8]} 9... Nh6 {[%clk
0:01:47.3]} 10. Nxf7 {[%clk 0:00:48.9]} 10... Nxf7 {[%clk 0:01:48.2]} 11. Bxe6
{[%clk 0:00:46.9]} 11... O-O {[%clk 0:01:42.4]} 12. Qf3 {[%clk 0:00:37.3]} 12...
Nf6 {[%clk 0:01:40]} 13. Be3 {[%clk 0:00:25.2]} 13... Qd6 {[%clk 0:01:35.7]} 14.
Bb3 {[%clk 0:00:17.3]} 14... Kh8 {[%clk 0:01:04.8]} 15. Rf1 {[%clk 0:00:16.5]}
15... Qd8 {[%clk 0:00:47.5]} 16. Bxf7 {[%clk 0:00:14.3]} 16... Rxf7 {[%clk
0:00:46]} 17. Ne4 {[%clk 0:00:14.8]} 17... Qd6 {[%clk 0:00:39.9]} 18. Nxd6
{[%clk 0:00:14.6]} 18... Bxd6 {[%clk 0:00:39.7]} 19. Bg5 {[%clk 0:00:12.6]}
19... Raf8 {[%clk 0:00:32.5]} 20. Bxf6 {[%clk 0:00:12.1]} 20... Rxf6 {[%clk
0:00:31.8]} 21. Rxf6 {[%clk 0:00:11.9]} 21... Rxf6 {[%clk 0:00:31.3]} 22. Qe2
{[%clk 0:00:09.6]} 22... Rxf1+ {[%clk 0:00:28.1]} 23. Qxf1 {[%clk 0:00:09.1]}
23... h6 {[%clk 0:00:29]} 24. Qf7 {[%clk 0:00:07.3]} 24... c5 {[%clk 0:00:26.1]}
25. Qxb7 {[%clk 0:00:06.7]} 25... cxd4 {[%clk 0:00:25.2]} 26. Qd5 {[%clk
0:00:06.2]} 26... Be7 {[%clk 0:00:20.8]} 27. Qxd4 {[%clk 0:00:05]} 27... Bf6
{[%clk 0:00:21.7]} 28. Qxf6 {[%clk 0:00:04.7]} 28... gxf6 {[%clk 0:00:21.8]} 29.
Kf2 {[%clk 0:00:05.6]} 29... Kg7 {[%clk 0:00:22.4]} 30. Kf3 {[%clk 0:00:06.4]}
30... Kg6 {[%clk 0:00:23.3]} 31. Kf4 {[%clk 0:00:06.9]} 31... a6 {[%clk
0:00:22.8]} 32. c4 {[%clk 0:00:07]} 32... f5 {[%clk 0:00:23.3]} 33. c5 {[%clk
0:00:07.1]} 33... Kf6 {[%clk 0:00:24.2]} 34. c6 {[%clk 0:00:07.3]} 34... Ke6
{[%clk 0:00:25.1]} 35. c7 {[%clk 0:00:07.8]} 35... Kd7 {[%clk 0:00:25.3]} 36.
Kxf5 {[%clk 0:00:08.7]} 36... Kxc7 {[%clk 0:00:25.8]} 37. Kg6 {[%clk 0:00:09.3]}
37... Kd7 {[%clk 0:00:25.9]} 38. Kxh6 {[%clk 0:00:09.8]} 38... Ke6 {[%clk
0:00:26.4]} 39. g4 {[%clk 0:00:10.2]} 39... Kf6 {[%clk 0:00:26.6]} 40. g5+
{[%clk 0:00:10.7]} 40... Kf7 {[%clk 0:00:27.2]} 41. Kh7 {[%clk 0:00:10.9]} 41...
Kf8 {[%clk 0:00:25.3]} 42. g6 {[%clk 0:00:11.5]} 42... Ke7 {[%clk 0:00:25]} 43.
g7 {[%clk 0:00:12.1]} 43... Ke6 {[%clk 0:00:25.9]} 44. g8=Q+ {[%clk 0:00:12.4]}
44... Ke5 {[%clk 0:00:26.8]} 45. Qf7 {[%clk 0:00:11.9]} 45... Ke4 {[%clk
0:00:27.7]} 46. Qc4+ {[%clk 0:00:11.9]} 46... Ke3 {[%clk 0:00:27.8]} 47. Kg6
{[%clk 0:00:11.5]} 47... Kf3 {[%clk 0:00:28.7]} 48. Qd4 {[%clk 0:00:11.5]} 48...
Ke2 {[%clk 0:00:29.6]} 49. h4 {[%clk 0:00:11.6]} 49... Kf1 {[%clk 0:00:29.9]}
50. Qd2 {[%clk 0:00:11.4]} 50... Kg1 {[%clk 0:00:29.6]} 51. Kf5 {[%clk
0:00:12.3]} 51... Kf1 {[%clk 0:00:30.2]} 52. Kf4 {[%clk 0:00:13.2]} 52... Kg1
{[%clk 0:00:31.1]} 53. Kg3 {[%clk 0:00:13.7]} 53... Kf1 {[%clk 0:00:32]} 54.
Qf2# {[%clk 0:00:13.9]} 1-0